bitfinex/quotes_BTCUSD_20230107
["timestamp","ask_amount","ask_price","bid_price","bid_amount"]
[1673118011163,1.40717194,16951.0,16950.0,1.46538737]
[1673118015758,1.67277599,16951.0,16950.0,1.46538737]
[1673118016786,1.40717194,16951.0,16950.0,1.46538737]
[1673118017039,1.67277328,16951.0,16950.0,1.46538737]
[1673118017579,1.23003313,16951.0,16950.0,1.46538737]
[1673118017814,1.67277328,16951.0,16950.0,1.46538737]
[1673118018611,1.23003313,16951.0,16950.0,1.46538737]
[1673118018880,1.67277328,16951.0,16950.0,1.46538737]
[1673118020608,1.40717194,16951.0,16950.0,1.46538737]
[1673118028503,1.40686592,16951.0,16950.0,1.46538737]
[1673118032530,0.79918092,16951.0,16950.0,1.46538737]
[1673118033828,1.40686592,16951.0,16950.0,1.46538737]
[1673118039371,0.79918092,16951.0,16950.0,1.46538737]
[1673118042189,0.44495226,16951.0,16950.0,1.46538737]
[1673118042443,1.40680326,16951.0,16950.0,1.46538737]
[1673118046340,0.79911826,16951.0,16950.0,1.46538737]
[1673118047438,1.05263726,16951.0,16950.0,1.46538737]
[1673118048450,1.05263726,16951.0,16950.0,1.46532617]
[1673118048717,1.65263726,16951.0,16950.0,1.46532617]
[1673118049459,1.05255856,16951.0,16950.0,1.46532617]
[1673118051405,1.40673154,16951.0,16950.0,1.46532617]
[1673118051845,1.05255856,16951.0,16950.0,1.46532617]
[1673118054097,0.44487356,16951.0,16950.0,1.46532617]
[1673118054355,0.79904019,16951.0,16950.0,1.46532617]
[1673118054860,1.40672519,16951.0,16950.0,1.46532617]
[1673118056410,1.40672655,16951.0,16950.0,1.46532617]
[1673118060783,0.79904155,16951.0,16950.0,1.46532617]
[1673118069623,0.79904155,16951.0,16950.0,1.95607317]
[1673118069839,0.7988542,16951.0,16950.0,1.46532617]
[1673118081076,1.06446981,16951.0,16950.0,1.46532617]
[1673118081325,0.7988542,16951.0,16950.0,1.46532617]
[1673118081826,1.06447055,16951.0,16950.0,1.46532617]
[1673118082080,0.7988542,16951.0,16950.0,1.46532617]
[1673118082332,0.7988542,16951.0,16950.0,1.95607317]
[1673118082827,0.7988542,16951.0,16950.0,1.46532617]
[1673118083570,1.0644706,16951.0,16950.0,1.95607317]
[1673118083831,1.0644706,16951.0,16950.0,1.46532617]
[1673118084332,0.62173045,16951.0,16950.0,1.46532617]
[1673118084555,0.7988542,16951.0,16950.0,1.46532617]
[1673118085784,1.06446609,16951.0,16950.0,1.46532617]
[1673118086035,0.7988542,16951.0,16950.0,1.46532617]
[1673118087558,1.0644641,16951.0,16950.0,1.46532617]
[1673118087806,0.7988542,16951.0,16950.0,1.46532617]
[1673118089058,1.4065392,16951.0,16950.0,1.46532617]
[1673118089312,0.7988542,16951.0,16950.0,1.46532617]
[1673118090321,1.4065392,16951.0,16950.0,1.46532617]
[1673118091336,1.4065392,16951.0,16950.0,1.46525472]
[1673118092648,0.7988542,16951.0,16950.0,1.46525472]
[1673118093358,1.4065392,16951.0,16950.0,1.46525472]
[1673118094334,0.7988542,16951.0,16950.0,1.46525472]
[1673118096080,1.4065392,16951.0,16950.0,1.46525472]
[1673118096555,0.7988542,16951.0,16950.0,1.46525472]
[1673118097821,0.7988542,16951.0,16950.0,1.95600172]
[1673118098065,0.7988542,16951.0,16950.0,1.46525472]
[1673118100044,0.7988542,16951.0,16950.0,1.95600172]
[1673118100542,0.7988542,16951.0,16950.0,1.46525472]
[1673118101266,0.7988542,16951.0,16950.0,1.95600172]
[1673118101771,0.7988542,16951.0,16950.0,1.46525472]
[1673118103298,0.7988542,16951.0,16950.0,1.95600172]
[1673118103819,0.7988542,16951.0,16950.0,1.46525472]
[1673118104837,0.7988542,16951.0,16950.0,1.95600172]
[1673118105336,0.7988542,16951.0,16950.0,1.46525472]
[1673118105581,0.79686136,16951.0,16950.0,1.46525472]
[1673118106074,0.79686136,16951.0,16950.0,1.95600172]
[1673118106583,0.79686136,16951.0,16950.0,1.46525472]
[1673118106835,0.79686136,16951.0,16950.0,1.95600172]
[1673118107343,0.79686136,16951.0,16950.0,1.46525472]
[1673118108135,0.79686136,16951.0,16950.0,1.95600172]
[1673118108414,0.79686136,16951.0,16950.0,1.46525472]
[1673118108653,1.40454636,16951.0,16950.0,1.46525472]
[1673118108906,0.79686136,16951.0,16950.0,1.46525472]
[1673118109329,0.79686136,16951.0,16950.0,1.95600172]
[1673118109833,0.79686136,16951.0,16950.0,1.46525472]
[1673118111695,0.79686136,16951.0,16950.0,1.95600172]
[1673118112240,0.79686136,16951.0,16950.0,1.46525472]
[1673118112750,0.79686136,16951.0,16950.0,1.95600172]
[1673118113191,0.79686136,16951.0,16950.0,1.46525472]
[1673118113954,0.79686136,16951.0,16950.0,1.95600172]
[1673118114467,0.79686136,16951.0,16950.0,1.46525472]
[1673118115004,0.79686136,16951.0,16950.0,1.95600172]
[1673118115258,0.79686136,16951.0,16950.0,1.46525472]
[1673118115513,1.40454636,16951.0,16950.0,1.46525472]
[1673118115769,0.79686136,16951.0,16950.0,1.46525472]
[1673118117020,0.79686136,16951.0,16950.0,1.95600172]
[1673118121393,0.79686136,16951.0,16950.0,1.46525472]
[1673118121607,0.79686136,16951.0,16950.0,1.95600172]
[1673118121831,0.6197847,16951.0,16950.0,1.95600172]
[1673118123566,0.6197847,16951.0,16950.0,2.53388626]
[1673118123823,0.6197847,16951.0,16950.0,1.95600172]
[1673118124536,0.79687019,16951.0,16950.0,1.95600172]
[1673118124791,0.6197847,16951.0,16950.0,1.95600172]
[1673118125049,0.79685805,16951.0,16950.0,1.46525472]
[1673118125304,0.6197847,16951.0,16950.0,1.46525472]
[1673118126599,0.6197847,16951.0,16950.0,1.95600172]
[1673118127831,0.6197847,16951.0,16950.0,1.46525472]
[1673118128076,0.6197847,16951.0,16950.0,1.46517893]
[1673118129841,0.79686136,16951.0,16950.0,1.95592593]
[1673118130344,0.79665638,16951.0,16950.0,1.46517893]
[1673118130569,0.79665638,16951.0,16950.0,1.95592593]
[1673118131271,0.79665638,16951.0,16950.0,1.46517893]
[1673118131950,0.79665638,16951.0,16950.0,1.95592593]
[1673118132211,0.79665638,16951.0,16950.0,1.46517893]
[1673118132734,0.79665638,16951.0,16950.0,1.95592593]
[1673118133761,0.79665638,16951.0,16950.0,1.46517893]
[1673118140637,0.79665638,16951.0,16950.0,1.95592593]
[1673118141091,0.79665638,16951.0,16950.0,1.46517893]
[1673118141816,0.79665638,16951.0,16950.0,1.95592593]
[1673118142059,0.79665638,16951.0,16950.0,1.46517893]
[1673118144999,0.79665638,16951.0,16950.0,1.95592593]
[1673118145770,0.79665638,16951.0,16950.0,1.46517893]
[1673118151763,0.79665638,16951.0,16950.0,1.95592593]
[1673118152272,0.79665638,16951.0,16950.0,1.46517893]
[1673118152536,0.79665638,16951.0,16950.0,1.46506523]
[1673118153073,0.80465638,16951.0,16950.0,1.51606523]
[1673118153284,0.79665638,16951.0,16950.0,1.46506523]
[1673118153510,0.81065638,16951.0,16950.0,1.51706523]
[1673118154694,0.79665638,16951.0,16950.0,1.46506523]
[1673118155205,0.80465638,16951.0,16950.0,1.50906523]
[1673118155460,0.80465638,16951.0,16950.0,1.46506523]
[1673118155754,0.80565638,16951.0,16950.0,1.46806523]
[1673118157102,1.07123912,16951.0,16950.0,1.46806523]
[1673118158068,0.80565638,16951.0,16950.0,1.46806523]
[1673118158362,1.0712364,16951.0,16950.0,1.46806523]
[1673118158869,0.80565638,16951.0,16950.0,1.46806523]
[1673118166355,0.80565638,16951.0,16950.0,1.22320121]
[1673118183165,1.40565638,16951.0,16950.0,1.22308628]
[1673118183392,0.80565638,16951.0,16950.0,1.22308628]
[1673118187477,0.45174015,16951.0,16950.0,1.22308628]
[1673118188772,0.80597545,16951.0,16950.0,1.22308628]
[1673118192278,1.41366045,16951.0,16950.0,1.22308628]
[1673118192810,0.80597545,16951.0,16950.0,1.22308628]
[1673118206675,0.80597545,16951.0,16950.0,1.22298914]
[1673118207192,1.41366045,16951.0,16950.0,1.22298914]
[1673118208559,0.80097545,16951.0,16950.0,1.22298914]
[1673118209319,1.40866045,16951.0,16950.0,1.22298914]
[1673118210084,1.40865258,16951.0,16950.0,1.22298914]
[1673118210333,0.80096758,16951.0,16950.0,1.22298914]
[1673118212617,0.80096758,16951.0,16950.0,1.71373614]
[1673118213111,0.80096758,16951.0,16950.0,1.22298914]
[1673118214866,0.80096758,16951.0,16950.0,1.71373614]
[1673118215129,0.80096758,16951.0,16950.0,1.22298914]
[1673118215376,1.40834489,16951.0,16950.0,1.22298914]
[1673118215925,0.80065989,16951.0,16950.0,1.22298914]
[1673118217237,1.40834489,16951.0,16950.0,1.22298914]
[1673118217729,0.80065989,16951.0,16950.0,1.22298914]
[1673118218468,0.80065989,16951.0,16950.0,1.71373614]
[1673118222457,0.80065989,16951.0,16950.0,1.22298914]
[1673118222993,0.80065989,16951.0,16950.0,1.71373614]
[1673118223488,0.80065989,16951.0,16950.0,1.22298914]
[1673118227398,1.06630898,16951.0,16950.0,1.22298914]
[1673118227656,0.80065989,16951.0,16950.0,1.22298914]
[1673118228442,1.06630883,16951.0,16950.0,1.22298914]
[1673118228681,0.80065989,16951.0,16950.0,1.22298914]
[1673118228958,1.06630478,16951.0,16950.0,1.22298914]
[1673118230051,0.80065989,16951.0,16950.0,1.22298914]
[1673118230308,1.06630703,16951.0,16950.0,1.22298914]
[1673118230559,0.62887457,16951.0,16950.0,1.22298914]
[1673118231630,1.06630703,16951.0,16950.0,1.22298914]
[1673118234001,0.80065989,16951.0,16950.0,1.22298914]
[1673118237814,1.06629797,16951.0,16950.0,1.22298914]
[1673118238330,0.62886551,16951.0,16950.0,1.22298914]
[1673118239520,0.62886551,16951.0,16950.0,1.222875]
[1673118242927,1.06629797,16951.0,16950.0,1.222875]
[1673118243147,0.80065989,16951.0,16950.0,1.222875]
[1673118243925,1.06628812,16951.0,16950.0,1.222875]
[1673118244186,0.80065989,16951.0,16950.0,1.222875]
[1673118244648,0.80065989,16951.0,16950.0,1.713622]
[1673118244649,1.06628953,16951.0,16950.0,1.713622]
[1673118245153,0.80065989,16951.0,16950.0,1.713622]
[1673118245406,0.80065989,16951.0,16950.0,1.222875]
[1673118246871,0.80065989,16951.0,16950.0,1.713622]
[1673118248686,0.80065989,16951.0,16950.0,1.222875]
[1673118252545,0.80065989,16951.0,16950.0,1.713622]
[1673118253580,1.06630282,16951.0,16950.0,1.713622]
[1673118254555,0.80065989,16951.0,16950.0,1.222875]
[1673118255072,1.06630437,16951.0,16950.0,1.222875]
[1673118255293,0.62887191,16951.0,16950.0,1.713622]
[1673118255901,1.06630437,16951.0,16950.0,1.713622]
[1673118256387,1.06630437,16951.0,16950.0,1.222875]
[1673118257373,0.62887191,16951.0,16950.0,1.222875]
[1673118257610,0.62887191,16951.0,16950.0,1.713622]
[1673118258901,0.80065989,16951.0,16950.0,1.713622]
[1673118260079,0.80065989,16951.0,16950.0,1.222875]
[1673118260314,0.80065989,16951.0,16950.0,1.713622]
[1673118262037,0.80065989,16951.0,16950.0,1.222875]
[1673118262291,0.80065989,16951.0,16950.0,1.713622]
[1673118262754,1.06631261,16951.0,16950.0,1.713622]
[1673118263005,1.06631261,16951.0,16950.0,1.222875]
[1673118265668,1.06631261,16951.0,16950.0,1.713622]
[1673118265890,0.62888015,16951.0,16950.0,1.713622]
[1673118266143,0.62888015,16951.0,16950.0,1.222875]
[1673118269908,0.62888015,16951.0,16950.0,1.713622]
[1673118270266,1.06631261,16951.0,16950.0,1.713622]
[1673118270515,1.06631261,16951.0,16950.0,1.222875]
[1673118270978,0.80065989,16951.0,16950.0,1.222875]
[1673118280873,1.06631171,16951.0,16950.0,1.222875]
[1673118281327,0.62887925,16951.0,16950.0,1.222875]
[1673118282856,1.22887925,16951.0,16950.0,1.22255856]
[1673118283106,0.62887925,16951.0,16950.0,1.22255856]
[1673118288630,0.62887925,16951.0,16950.0,1.71330556]
[1673118290493,0.62887925,16951.0,16950.0,1.22255856]
[1673118291755,0.62887925,16951.0,16950.0,1.71330556]
[1673118292267,0.62887925,16951.0,16950.0,1.22255856]
[1673118293737,0.62887925,16951.0,16950.0,1.71330556]
[1673118294517,0.62887925,16951.0,16950.0,1.22255856]
[1673118295264,0.62887925,16951.0,16950.0,1.71330556]
[1673118296918,0.80595728,16951.0,16950.0,1.71330556]
[1673118297157,0.80595728,16951.0,16950.0,1.22255856]
[1673118297785,0.62887925,16951.0,16950.0,1.22255856]
[1673118306219,0.62857113,16951.0,16950.0,1.22255856]
[1673118306901,0.62857113,16951.0,16950.0,1.71330556]
[1673118307161,0.62857113,16951.0,16950.0,1.22255856]
[1673118311175,0.62836518,16951.0,16950.0,1.22255856]
[1673118315912,1.06579764,16951.0,16950.0,1.22255856]
[1673118316853,0.80014582,16951.0,16950.0,1.22255856]
[1673118317368,1.40783082,16951.0,16950.0,1.22255856]
[1673118317646,1.98571512,16951.0,16950.0,1.22255856]
[1673118317917,1.40783082,16951.0,16950.0,1.22255856]
[1673118322987,0.62832371,16951.0,16950.0,1.22255856]
[1673118323480,1.06575617,16951.0,16950.0,1.22255856]
[1673118323998,1.06575608,16951.0,16950.0,1.22255856]
[1673118324741,0.80014582,16951.0,16950.0,1.22255856]
[1673118325306,1.67343793,16951.0,16950.0,1.22255856]
[1673118325538,1.40783082,16951.0,16950.0,1.22255856]
[1673118328097,0.80014582,16951.0,16950.0,1.22255856]
[1673118328575,1.40783082,16951.0,16950.0,1.22255856]
[1673118329671,0.80014582,16951.0,16950.0,1.22255856]
[1673118329928,1.40783082,16951.0,16950.0,1.22255856]
[1673118331576,0.80014582,16951.0,16950.0,1.22255856]
[1673118332898,1.40014582,16951.0,16950.0,1.22248845]
[1673118333131,2.00783082,16951.0,16950.0,1.22248845]
[1673118333380,2.58559225,16951.0,16950.0,1.22248845]
[1673118333908,1.98559225,16951.0,16950.0,1.22248845]
[1673118334946,1.37790725,16951.0,16950.0,1.22248845]
[1673118336238,0.80014582,16951.0,16950.0,1.22248845]
[1673118336498,1.37784598,16951.0,16950.0,1.22248845]
[1673118336795,0.8000282,16951.0,16950.0,1.22248845]
[1673118338047,1.98535198,16951.0,16950.0,1.22248845]
[1673118339411,1.37766698,16951.0,16950.0,1.22248845]
[1673118339894,1.3776669,16951.0,16950.0,1.22248845]
[1673118340148,0.8000282,16951.0,16950.0,1.22248845]
[1673118342402,1.4077132,16951.0,16950.0,1.22248845]
[1673118346052,1.98535175,16951.0,16950.0,1.22248845]
[1673118350116,1.98535175,16951.0,16950.0,0.58145493]
[1673118350374,1.19369186,16951.0,16950.0,0.58145493]
[1673118350631,0.58600686,16951.0,16950.0,0.58145493]
[1673118352114,1.19369186,16951.0,16950.0,0.58145493]
[1673118353223,0.58600686,16951.0,16950.0,0.58145493]
[1673118356031,1.19369186,16951.0,16950.0,0.58145493]
[1673118356859,0.58600686,16951.0,16950.0,0.58145493]
[1673118358962,1.18600686,16951.0,16950.0,0.58137709]
[1673118359557,1.79369186,16951.0,16950.0,0.58137709]
[1673118360461,2.2362461,16951.0,16950.0,0.58137709]
[1673118361752,1.6362461,16951.0,16950.0,0.58137709]
[1673118362006,1.0285611,16951.0,16950.0,0.58137709]
[1673118363496,1.6362461,16951.0,16950.0,0.58137709]
[1673118365079,1.0285611,16951.0,16950.0,0.58137709]
[1673118366393,1.6362461,16951.0,16950.0,0.58137709]
[1673118367794,1.0285611,16951.0,16950.0,0.58137709]
[1673118369798,1.02837441,16951.0,16950.0,0.58137709]
[1673118370019,1.63605941,16951.0,16950.0,0.58137709]
[1673118371256,1.63609511,16951.0,16950.0,0.58137709]
[1673118373007,1.02841011,16951.0,16950.0,0.58137709]
[1673118377935,1.38249337,16951.0,16950.0,0.58137709]
[1673118378741,1.81221502,16952.0,16950.0,0.58137709]
[1673118378742,0.96866829,16952.0,16950.0,0.58137709]
[1673118378999,0.607685,16951.0,16950.0,0.58137709]
[1673118379971,2.34857046,16952.0,16950.0,0.57837709]
[1673118380259,0.607685,16951.0,16950.0,0.57837709]
[1673118380515,0.607685,16951.0,16950.0,0.58437709]
[1673118381756,0.614685,16951.0,16950.0,0.58737709]
[1673118384055,0.614685,16951.0,16950.0,0.55211891]
[1673118387387,0.614685,16951.0,16950.0,1.1299293]
[1673118387642,0.96881581,16951.0,16950.0,1.1299293]
[1673118387890,0.36113081,16951.0,16950.0,1.1299293]
[1673118393192,0.35613081,16951.0,16950.0,1.1299293]
[1673118395499,0.35613081,16951.0,16950.0,1.13014957]
[1673118396566,0.35613081,16951.0,16950.0,1.1299293]
[1673118397075,0.35582329,16951.0,16950.0,1.1299293]
[1673118397377,0.35582329,16951.0,16950.0,1.13034181]
[1673118398015,0.35582329,16951.0,16950.0,1.1299293]
[1673118402875,0.35582329,16951.0,16950.0,1.13055105]
[1673118403211,0.35582329,16951.0,16950.0,1.1299293]
[1673118403991,0.35582329,16951.0,16950.0,1.13055105]
[1673118404224,0.35582329,16951.0,16950.0,1.1299293]
[1673118405301,0.35582329,16951.0,16950.0,1.13055105]
[1673118405564,0.30582329,16951.0,16950.0,1.1299293]
[1673118406311,0.29582329,16951.0,16950.0,1.1299293]
[1673118407038,0.26062329,16951.0,16950.0,1.1299293]
[1673118407299,0.26062329,16951.0,16950.0,1.13055105]
[1673118408289,0.21062329,16951.0,16950.0,1.1299293]
[1673118412280,0.21062329,16951.0,16950.0,1.13055105]
[1673118412544,0.21062329,16951.0,16950.0,1.1299293]
[1673118427308,1.75430525,16952.0,16950.0,1.1299293]
[1673118428042,0.9542519,16951.0,16950.0,1.1299293]
[1673118428295,0.3542519,16951.0,16950.0,1.1299293]
[1673118428560,0.3542519,16951.0,16950.0,1.1209293]
[1673118428835,0.9542519,16951.0,16950.0,1.12784159]
[1673118429085,0.3542519,16951.0,16950.0,1.12084159]
[1673118429389,0.3572519,16951.0,16950.0,1.12284159]
[1673118430265,0.35716465,16951.0,16950.0,1.12284159]
[1673118438512,0.35716465,16951.0,16950.0,1.61358859]
[1673118439259,0.35716465,16951.0,16950.0,1.12284159]
[1673118439762,0.35716465,16951.0,16950.0,1.61358859]
[1673118441033,0.35716465,16951.0,16950.0,1.12284159]
[1673118445526,0.003,16951.0,16950.0,1.12284159]
[1673118453631,0.003,16951.0,16950.0,1.12277449]
[1673118457347,0.35720415,16951.0,16950.0,1.12277449]
[1673118457883,0.003,16951.0,16950.0,1.12277449]
[1673118458122,0.35720439,16951.0,16950.0,1.12277449]
[1673118458632,0.003,16951.0,16950.0,1.12277449]
[1673118460797,0.610685,16951.0,16950.0,1.12277449]
[1673118463169,0.003,16951.0,16950.0,1.12277449]
[1673118464477,0.35719791,16951.0,16950.0,1.12277449]
[1673118465307,0.003,16951.0,16950.0,1.12277449]
[1673118465557,0.35719931,16951.0,16950.0,1.12277449]
[1673118472846,0.3570959,16951.0,16950.0,1.12277449]
[1673118478514,0.00289659,16951.0,16950.0,1.12277449]
[1673118480315,0.35709601,16951.0,16950.0,1.12277449]
[1673118480679,0.35709351,16951.0,16950.0,1.12277449]
[1673118488056,0.35678537,16951.0,16950.0,1.12277449]
[1673118492032,0.35657944,16951.0,16950.0,1.12277449]
[1673118497779,0.79931678,16951.0,16950.0,1.12277449]
[1673118516994,0.79931678,16951.0,16950.0,1.12270619]
[1673118518532,1.40700178,16951.0,16950.0,1.12270619]
[1673118519324,1.05280486,16951.0,16950.0,1.12270619]
[1673118519577,0.79931633,16951.0,16950.0,1.12270619]
[1673118519804,0.44511986,16951.0,16950.0,1.12270619]
[1673118527344,0.7992813,16951.0,16950.0,1.12270619]
[1673118528149,0.44511986,16951.0,16950.0,1.12270619]
[1673118528926,0.79927616,16951.0,16950.0,1.12270619]
[1673118537179,1.39927616,16951.0,16950.0,1.12261467]
[1673118537433,0.79927616,16951.0,16950.0,1.12261467]
[1673118543863,0.44511986,16951.0,16950.0,0.54480428]
[1673118544358,0.44511986,16951.0,16950.0,1.03555128]
[1673118545351,0.44511986,16951.0,16950.0,0.54480428]
[1673118545849,0.79925471,16951.0,16950.0,0.54480428]
[1673118546770,0.44511986,16951.0,16950.0,0.54480428]
[1673118547508,0.79925486,16951.0,16950.0,0.54480428]
[1673118557500,0.44511986,16951.0,16950.0,0.54480428]
[1673118558365,0.79934119,16951.0,16950.0,1.03555128]
[1673118558595,0.79934119,16951.0,16950.0,0.54480428]
[1673118559925,0.79934119,16951.0,16950.0,1.03555128]
[1673118560160,0.79934119,16951.0,16950.0,0.54470073]
[1673118561123,0.79934119,16951.0,16950.0,1.03544773]
[1673118561356,0.79934119,16951.0,16950.0,0.54470073]
[1673118561843,0.79934119,16951.0,16950.0,1.03544773]
[1673118562354,0.79934119,16951.0,16950.0,0.54470073]
[1673118562562,0.79934119,16951.0,16950.0,1.03544773]
[1673118563269,0.79934119,16951.0,16950.0,0.54470073]
[1673118564571,0.79934119,16951.0,16950.0,1.03544773]
[1673118565555,1.06497551,16951.0,16950.0,1.53605486]
[1673118565787,0.79934119,16951.0,16950.0,1.53605486]
[1673118566021,1.06496661,16951.0,16950.0,1.53605486]
[1673118566246,0.62222927,16951.0,16950.0,1.53605486]
[1673118567187,1.06496661,16951.0,16950.0,1.53605486]
[1673118567416,0.62222927,16951.0,16950.0,1.53605486]
[1673118567902,0.62222927,16951.0,16950.0,1.04530786]
[1673118570011,0.62222927,16951.0,16950.0,1.53605486]
[1673118571658,1.06496661,16951.0,16950.0,1.53605486]
[1673118571932,0.62222927,16951.0,16950.0,1.04530786]
[1673118572168,0.62222927,16951.0,16950.0,1.53605486]
[1673118572405,0.62222927,16951.0,16950.0,1.04530786]
[1673118573097,0.62222927,16951.0,16950.0,1.53605486]
[1673118574258,0.62222927,16951.0,16950.0,1.04530786]
[1673118574768,0.62222927,16951.0,16950.0,1.53605486]
[1673118577206,0.62222927,16951.0,16950.0,1.04530786]
[1673118577746,0.62222927,16951.0,16950.0,1.53605486]
[1673118578007,0.62222927,16951.0,16950.0,1.04530786]
[1673118578760,0.62192713,16951.0,16950.0,1.53605486]
[1673118579237,0.62192713,16951.0,16950.0,1.04530786]
[1673118580234,0.62192713,16951.0,16950.0,1.53605486]
[1673118581537,0.62192713,16951.0,16950.0,1.04530786]
[1673118583339,0.62192713,16951.0,16950.0,1.53605486]
[1673118584065,1.06466447,16951.0,16950.0,1.53605486]
[1673118584337,1.06466447,16951.0,16950.0,1.04530786]
[1673118584818,1.06463914,16951.0,16950.0,1.04530786]
[1673118585064,0.79903905,16951.0,16950.0,1.04530786]
[1673118585558,1.06463821,16951.0,16950.0,1.04530786]
[1673118586052,1.06463821,16951.0,16950.0,1.53605486]
[1673118586820,1.06463821,16951.0,16950.0,1.04530786]
[1673118587315,1.06463821,16951.0,16950.0,1.53605486]
[1673118587566,1.06463821,16951.0,16950.0,1.04530786]
[1673118588051,0.79903905,16951.0,16950.0,1.04530786]
[1673118589784,0.79903905,16951.0,16950.0,1.53605486]
[1673118590568,0.79903905,16951.0,16950.0,1.04530786]
[1673118591302,0.79903905,16951.0,16950.0,1.53605486]
[1673118592457,0.79903905,16951.0,16950.0,1.04530786]
[1673118596596,0.79903905,16951.0,16950.0,1.53605486]
[1673118597542,0.79903905,16951.0,16950.0,1.04530786]
[1673118598760,0.79903905,16951.0,16950.0,1.53605486]
[1673118599021,1.39903905,16951.0,16950.0,1.04519725]
[1673118599276,0.79903905,16951.0,16950.0,1.04519725]
[1673118599807,0.79903905,16951.0,16950.0,1.53594425]
[1673118600555,0.79903905,16951.0,16950.0,1.04519725]
[1673118601392,0.79903905,16951.0,16950.0,1.53594425]
[1673118601897,0.79903905,16951.0,16950.0,1.04519725]
[1673118603274,0.79903905,16951.0,16950.0,1.53594425]
[1673118604066,0.79903905,16951.0,16950.0,1.04519725]
[1673118605374,0.79903905,16951.0,16950.0,1.53594425]
[1673118608614,0.62198116,16951.0,16950.0,1.53594425]
[1673118621388,0.62198116,16951.0,16950.0,1.04519725]
[1673118622355,1.0647185,16951.0,16950.0,1.04519725]
[1673118622616,0.79903905,16951.0,16950.0,1.04519725]
[1673118624383,1.39903905,16951.0,16950.0,1.04511917]
[1673118624628,0.79903905,16951.0,16950.0,1.04511917]
[1673118625380,0.79903905,16951.0,16950.0,1.53586617]
[1673118625626,0.79903905,16951.0,16950.0,1.04511917]
[1673118641927,1.06466156,16951.0,16950.0,1.04511917]
[1673118642428,0.79903905,16951.0,16950.0,1.04511917]
[1673118645375,1.06466176,16951.0,16950.0,1.04511917]
[1673118645686,0.79903905,16951.0,16950.0,1.04511917]
[1673118646469,1.06466201,16951.0,16950.0,1.04511917]
[1673118646982,0.79903905,16951.0,16950.0,1.04511917]
[1673118647249,1.06466157,16951.0,16950.0,1.04511917]
[1673118647641,0.62192423,16951.0,16950.0,1.04511917]
[1673118648889,1.06466157,16951.0,16950.0,1.04511917]
[1673118652951,1.05966157,16951.0,16950.0,1.04511917]
[1673118657960,0.79403905,16951.0,16950.0,1.04511917]
[1673118660008,0.79403905,16951.0,16950.0,1.53586617]
[1673118660743,0.79403905,16951.0,16950.0,1.04511917]
[1673118661507,0.79403905,16951.0,16950.0,1.53586617]
[1673118661774,0.79403905,16951.0,16950.0,1.04511917]
[1673118663756,0.79403905,16951.0,16950.0,1.53586617]
[1673118667927,0.79403905,16951.0,16950.0,1.04511917]
[1673118668181,0.79403905,16951.0,16950.0,1.53586617]
[1673118668432,1.059693,16951.0,16950.0,1.53586617]
[1673118668702,1.059693,16951.0,16950.0,1.04511917]
[1673118668953,0.79403905,16951.0,16950.0,1.04511917]
[1673118669198,1.05969345,16951.0,16950.0,1.53586617]
[1673118669448,0.79373129,16951.0,16950.0,1.53586617]
[1673118670131,0.79373129,16951.0,16950.0,1.04511917]
[1673118670637,0.79354409,16951.0,16950.0,1.04511917]
[1673118672430,0.61647521,16951.0,16950.0,1.53586617]
[1673118672680,1.05900745,16951.0,16950.0,1.04511917]
[1673118672936,1.05900745,16951.0,16950.0,1.53586617]
[1673118673178,1.05900745,16951.0,16950.0,1.04511917]
[1673118674808,1.05900745,16951.0,16950.0,1.04534045]
[1673118675843,1.05900745,16951.0,16950.0,1.04511917]
[1673118678495,1.05900745,16951.0,16950.0,1.53586617]
[1673118678964,1.05900745,16951.0,16950.0,1.04511917]
[1673118679216,1.05900745,16951.0,16950.0,1.53586617]
[1673118679648,1.05900745,16951.0,16950.0,1.04511917]
[1673118680407,1.05900745,16951.0,16950.0,1.53586617]
[1673118680658,1.05900745,16951.0,16950.0,1.04511917]
[1673118680901,0.61627011,16951.0,16950.0,1.53586617]
[1673118681177,0.79333899,16951.0,16950.0,1.04511917]
[1673118683182,0.79333899,16951.0,16950.0,1.53586617]
[1673118684192,0.79333899,16951.0,16950.0,1.04511917]
[1673118684712,1.40102399,16951.0,16950.0,1.04511917]
[1673118685459,0.79333899,16951.0,16950.0,1.04511917]
[1673118685707,0.79333899,16951.0,16950.0,1.53586617]
[1673118685956,0.79333899,16951.0,16950.0,1.04511917]
[1673118686689,0.79333899,16951.0,16950.0,1.53586617]
[1673118686948,0.79333899,16951.0,16950.0,1.04511917]
[1673118687452,1.05901513,16951.0,16950.0,1.53586617]
[1673118687693,1.05901513,16951.0,16950.0,1.04511917]
[1673118687942,1.05901513,16951.0,16950.0,1.53586617]
[1673118688181,1.05901513,16951.0,16950.0,1.04511917]
[1673118688429,0.61627779,16951.0,16950.0,1.04511917]
[1673118688673,0.61627779,16951.0,16950.0,1.53586617]
[1673118688922,0.61627779,16951.0,16950.0,1.04511917]
[1673118689164,0.61627779,16951.0,16950.0,1.53586617]
[1673118689378,0.61627779,16951.0,16950.0,1.04511917]
[1673118690369,0.61627779,16951.0,16950.0,1.53586617]
[1673118691970,0.61627779,16951.0,16950.0,1.04511917]
[1673118693207,0.61627779,16951.0,16950.0,1.53586617]
[1673118693955,0.61627779,16951.0,16950.0,1.04511917]
[1673118694199,0.61627779,16951.0,16950.0,1.53586617]
[1673118694461,0.61627779,16951.0,16950.0,1.04511917]
[1673118695965,1.22396279,16951.0,16950.0,1.04511917]
[1673118696712,0.61627779,16951.0,16950.0,1.04511917]
[1673118696928,1.65901513,16951.0,16950.0,1.04500218]
[1673118697142,1.40102399,16951.0,16950.0,1.04500218]
[1673118698368,0.79333899,16951.0,16950.0,1.04500218]
[1673118705528,1.40102399,16951.0,16950.0,1.04500218]
[1673118707593,0.79333899,16951.0,16950.0,1.04500218]
[1673118715379,1.05898682,16951.0,16950.0,1.04500218]
[1673118715677,0.79333899,16951.0,16950.0,1.04500218]
[1673118716192,1.05898652,16951.0,16950.0,1.04500218]
[1673118718838,0.61624918,16951.0,16950.0,1.04500218]
[1673118723146,1.05898652,16951.0,16950.0,1.04500218]
[1673118726293,0.79333899,16951.0,16950.0,1.04500218]
[1673118726558,1.05898737,16951.0,16950.0,1.04500218]
[1673118727071,0.79333899,16951.0,16950.0,1.04500218]
[1673118728813,0.79333899,16951.0,16950.0,1.04493754]
[1673118729065,1.39333899,16951.0,16950.0,1.04493754]
[1673118729560,0.79333899,16951.0,16950.0,1.04493754]
[1673118731791,1.40102399,16951.0,16950.0,1.04493754]
[1673118732532,0.79333899,16951.0,16950.0,1.04493754]
[1673118736021,1.40102399,16951.0,16950.0,1.04493754]
[1673118738448,0.79333899,16951.0,16950.0,1.04493754]
[1673118745671,1.40102399,16951.0,16950.0,1.04493754]
[1673118746719,0.79333899,16951.0,16950.0,1.04493754]
[1673118751600,1.40102399,16951.0,16950.0,1.04493754]
[1673118751842,0.79333899,16951.0,16950.0,1.04493754]
[1673118752770,1.40102399,16951.0,16950.0,1.04493754]
[1673118753767,0.79333899,16951.0,16950.0,1.04493754]
[1673118754300,1.39333899,16951.0,16950.0,1.04485187]
[1673118754740,0.79333899,16951.0,16950.0,1.04485187]